lending/lending_fUSD_20240411
["ID","MTS","AMOUNT","RATE_DAILY","PERIOD"]
[322194156,1712869857375,-583.53,0.00027671,2]
[322194157,1712869857385,-500.0,0.00027671,2]
[322194158,1712869857395,-500.0,0.00027671,2]
[322194159,1712869857405,-500.0,0.00027671,2]
[322194160,1712869857415,-500.0,0.00027671,2]
[322194161,1712869857425,-500.0,0.00027671,2]
[322194162,1712869857435,-477.32350389,0.00027671,2]
[322194163,1712869857446,-500.0,0.00027671,2]
[322194164,1712869857456,-500.0,0.00027671,2]
[322194165,1712869857466,-500.0,0.00027671,2]
[322194166,1712869857477,-500.0,0.00027671,2]
[322194167,1712869857486,-500.0,0.00027671,2]
[322194168,1712869857495,-500.0,0.00027671,2]
[322194169,1712869857504,-794.27,0.00027671,2]
[322194170,1712869857514,-500.0,0.00027671,2]
[322194171,1712869857524,-500.0,0.00027671,2]
[322194172,1712869857534,-775.81,0.00027671,2]
[322194173,1712869857543,-500.0,0.00027671,2]
[322194174,1712869857552,-500.0,0.00027671,2]
[322194175,1712869857562,-500.0,0.00027671,2]
[322194176,1712869857572,-500.0,0.00027671,2]
[322194177,1712869857582,-500.0,0.00027671,2]
[322194178,1712869857593,-311.5290067,0.00027671,2]
[322194179,1712869857604,-500.0,0.00027671,2]
[322194180,1712869857614,-1268.53,0.00027671,2]
[322194181,1712869857625,-500.0,0.00027671,2]
[322194182,1712869857635,-579.81,0.00027671,2]
[322194183,1712869857646,-683.65,0.00027671,2]
[322194184,1712869857657,-500.0,0.00027671,2]
[322194185,1712869857667,-500.0,0.00027671,2]
[322194186,1712869857750,-500.0,0.00027671,2]
[322194187,1712869857761,-500.0,0.00027671,2]
[322194188,1712869857770,-500.0,0.00027671,2]
[322194189,1712869857779,-1283.53,0.00027671,2]
[322194190,1712869857790,-500.0,0.00027671,2]
[322194191,1712869857801,-500.0,0.00027671,2]
[322194192,1712869857810,-500.0,0.00027671,2]
[322194193,1712869857819,-500.0,0.00027671,2]
[322194194,1712869857830,-1242.22,0.00027671,2]
[322194195,1712869857844,-500.0,0.00027671,2]
[322194196,1712869857856,-610.16,0.00027671,2]
[322194197,1712869857869,-500.0,0.00027671,2]
[322194198,1712869857882,-686.6,0.00027671,2]
[322194199,1712869857893,-964.51,0.00027671,2]
[322194200,1712869857905,-500.0,0.00027671,2]
[322194201,1712869857916,-552.23,0.00027671,2]
[322194202,1712869857927,-500.0,0.00027671,2]
[322194203,1712869857938,-500.0,0.00027671,2]
[322194204,1712869857948,-500.0,0.00027671,2]
[322194205,1712869857958,-993.58,0.00027671,2]
[322194206,1712869857968,-500.0,0.00027671,2]
[322194207,1712869857977,-500.0,0.00027671,2]
[322194208,1712869857988,-675.23,0.00027671,2]
[322194209,1712869857998,-500.0,0.00027671,2]
[322194210,1712869858008,-500.0,0.00027671,2]
[322194211,1712869858018,-500.0,0.00027671,2]
[322194212,1712869858029,-500.0,0.00027671,2]
[322194213,1712869858040,-500.0,0.00027671,2]
[322194214,1712869858051,-1308.49,0.00027671,2]
[322194215,1712869858061,-1721.91,0.00027671,2]
[322194216,1712869858071,-703.03,0.00027671,2]
[322194217,1712869858080,-564.56,0.00027671,2]
[322194218,1712869858090,-560.79,0.00027671,2]
[322194219,1712869858100,-500.0,0.00027671,2]
[322194220,1712869858109,-561.9,0.00027671,2]
[322194221,1712869858118,-500.0,0.00027671,2]
[322194222,1712869858128,-1067.51,0.00027671,2]
[322194223,1712869858137,-598.24,0.00027671,2]
[322194224,1712869858146,-500.0,0.00027671,2]
[322194225,1712869858159,-500.0,0.00027671,2]
[322194226,1712869858169,-500.0,0.00027671,2]
[322194227,1712869858178,-500.0,0.00027671,2]
[322194228,1712869858187,-500.0,0.00027671,2]
[322194229,1712869858196,-691.29,0.00027671,2]
[322194230,1712869858205,-500.0,0.00027671,2]
[322194231,1712869858215,-500.0,0.00027671,2]
[322194232,1712869858224,-500.0,0.00027671,2]
[322194233,1712869858234,-500.0,0.00027671,2]
[322194234,1712869858243,-500.0,0.00027671,2]
[322194235,1712869858252,-704.14,0.00027671,2]
[322194236,1712869858262,-500.0,0.00027671,2]
[322194237,1712869858271,-645.96,0.00027671,2]
[322194238,1712869858280,-1172.44,0.00027671,2]
[322194239,1712869858289,-151.0,0.00027671,7]
[322194240,1712869858299,-500.0,0.00027671,2]
[322194241,1712869858309,-151.0,0.00027671,7]
[322194242,1712869858318,-500.0,0.00027671,2]
[322194243,1712869858327,-500.0,0.00027671,2]
[322194244,1712869858338,-500.0,0.00027671,2]
[322194245,1712869858348,-500.0,0.00027671,2]
[322194246,1712869858359,-500.0,0.00027671,2]
[322194247,1712869858369,-1403.78,0.00027671,2]
[322194248,1712869858379,-500.0,0.00027671,2]
[322194249,1712869858388,-820.3,0.00027671,2]
[322194250,1712869858398,-500.0,0.00027671,2]
[322194251,1712869858407,-500.0,0.00027671,2]
[322194252,1712869858417,-500.0,0.00027671,2]
[322194253,1712869858427,-500.0,0.00027671,2]
[322194254,1712869858438,-500.0,0.00027671,2]
[322194255,1712869858449,-500.0,0.00027671,2]
[322194256,1712869858459,-500.0,0.00027671,2]
[322194257,1712869858469,-500.0,0.00027671,2]
[322194258,1712869858479,-500.0,0.00027671,2]
[322194259,1712869858489,-500.0,0.00027671,2]
[322194260,1712869858498,-500.0,0.00027671,2]
[322194261,1712869858507,-500.0,0.00027671,2]
[322194262,1712869858517,-500.0,0.00027671,2]
[322194263,1712869858528,-163.18685028,0.00027671,2]
[322194264,1712869858539,-514.57858315,0.00027671,2]
[322194265,1712869858548,-1352.31,0.00027671,2]
[322194266,1712869858558,-500.0,0.00027671,2]
[322194267,1712869858567,-500.0,0.00027671,2]
[322194268,1712869858577,-500.0,0.00027671,2]
[322194269,1712869858587,-868.58,0.00027671,2]
[322194270,1712869858597,-500.0,0.00027671,2]
[322194271,1712869858606,-500.0,0.00027671,2]
[322194272,1712869858615,-500.0,0.00027671,2]
[322194273,1712869858625,-500.0,0.00027671,2]
[322194274,1712869858634,-500.0,0.00027671,2]
[322194275,1712869858643,-1263.1,0.00027671,2]
[322194276,1712869858652,-500.0,0.00027671,2]
[322194277,1712869858661,-1192.54,0.00027671,2]
[322194278,1712869858671,-811.44,0.00027671,2]
[322194279,1712869858680,-500.0,0.00027671,2]
[322194280,1712869858692,-500.0,0.00027671,2]
[322194281,1712869858703,-500.0,0.00027671,2]
[322194282,1712869858712,-500.0,0.00027671,2]
[322194283,1712869858721,-500.0,0.00027671,2]
[322194284,1712869858730,-500.0,0.00027671,2]
[322194285,1712869858741,-676.3,0.00027671,2]
[322194286,1712869858751,-1391.45,0.00027671,2]
[322194287,1712869858761,-609.69,0.00027671,2]
[322194288,1712869858771,-500.0,0.00027671,2]
[322194289,1712869858781,-500.0,0.00027671,2]
[322194290,1712869858792,-540.39,0.00027671,2]
[322194291,1712869858802,-1771.03,0.00027671,2]
[322194292,1712869858813,-500.0,0.00027671,2]
[322194293,1712869858823,-500.0,0.00027671,2]
[322194294,1712869858835,-541.31,0.00027671,2]
[322194295,1712869858845,-407.93603705,0.00027671,2]
[322194296,1712869858855,-1468.06,0.00027671,2]
[322194297,1712869858865,-500.0,0.00027671,2]
[322194298,1712869858876,-500.0,0.00027671,2]
[322194299,1712869858886,-862.27,0.00027671,2]
[322194300,1712869858897,-337.66302514,0.00027671,2]
[322194301,1712869858909,-500.0,0.00027671,2]
[322194302,1712869858922,-1183.63,0.00027671,2]
[322194303,1712869858931,-500.0,0.00027671,2]
[322194304,1712869858942,-618.24337132,0.00027671,2]
[322194305,1712869858953,-500.0,0.00027671,2]
[322194306,1712869858963,-500.0,0.00027671,2]
[322194307,1712869858974,-500.0,0.00027671,2]
[322194308,1712869858984,-500.0,0.00027671,2]
[322194309,1712869858993,-500.0,0.00027671,2]
[322194310,1712869859002,-500.0,0.00027671,2]
[322194311,1712869859012,-839.54,0.00027671,2]
[322194312,1712869859021,-500.0,0.00027671,2]
[322194313,1712869859031,-500.0,0.00027671,2]
[322194314,1712869859041,-500.0,0.00027671,2]
[322194315,1712869859050,-1787.12,0.00027671,2]
[322194316,1712869859059,-500.0,0.00027671,2]
[322194317,1712869859069,-500.0,0.00027671,2]
[322194318,1712869859078,-500.0,0.00027671,2]
[322194319,1712869859088,-500.0,0.00027671,2]
[322194320,1712869859097,-500.0,0.00027671,2]
[322194321,1712869859106,-500.0,0.00027671,2]
[322194322,1712869859115,-1253.73,0.00027671,2]
[322194323,1712869859125,-500.0,0.00027671,2]
[322194324,1712869859134,-735.73,0.00027671,2]
[322194325,1712869859143,-500.0,0.00027671,2]
[322194326,1712869859153,-500.0,0.00027671,2]
[322194327,1712869859162,-500.0,0.00027671,2]
[322194328,1712869859173,-1318.44,0.00027671,2]
[322194329,1712869859183,-500.0,0.00027671,2]
[322194330,1712869859194,-500.0,0.00027671,2]
[322194331,1712869859204,-500.0,0.00027671,2]
[322194332,1712869859217,-500.0,0.00027671,2]
[322194333,1712869859227,-500.0,0.00027671,2]
[322194334,1712869859236,-500.0,0.00027671,2]
[322194335,1712869859246,-500.0,0.00027671,2]
[322194336,1712869859256,-1495.11,0.00027671,2]
[322194337,1712869859265,-700.59,0.00027671,2]
[322194338,1712869859275,-500.0,0.00027671,2]
[322194339,1712869859284,-500.0,0.00027671,2]
[322194340,1712869859294,-758.95,0.00027671,2]
[322194341,1712869859304,-500.0,0.00027671,2]
[322194342,1712869859313,-521.21,0.00027671,2]
[322194343,1712869859324,-1654.67,0.00027671,2]
[322194344,1712869859334,-500.0,0.00027671,2]
[322194345,1712869859345,-500.0,0.00027671,2]
[322194346,1712869859357,-586.60971887,0.00027671,2]
[322194347,1712869859368,-500.0,0.00027671,2]
[322194348,1712869859378,-638.47,0.00027671,2]
[322194349,1712869859389,-500.0,0.00027671,2]
[322194350,1712869859400,-1164.2,0.00027671,2]
[322194351,1712869859412,-500.0,0.00027671,2]
[322194352,1712869859422,-500.0,0.00027671,2]
[322194353,1712869859433,-500.0,0.00027671,2]
[322194354,1712869859444,-949.05,0.00027671,2]
[322194355,1712869859455,-500.0,0.00027671,2]
[322194356,1712869859465,-500.0,0.00027671,2]
[322194357,1712869859477,-500.0,0.00027671,2]
[322194358,1712869859487,-500.0,0.00027671,2]
[322194359,1712869859497,-500.0,0.00027671,2]
[322194360,1712869859508,-500.0,0.00027671,2]
[322194361,1712869859520,-500.0,0.00027671,2]
[322194362,1712869859530,-500.0,0.00027671,2]
[322194363,1712869859540,-500.0,0.00027671,2]
[322194364,1712869859552,-500.0,0.00027671,2]
[322194365,1712869859563,-500.0,0.00027671,2]
[322194366,1712869859574,-500.0,0.00027671,2]
[322194367,1712869859586,-500.0,0.00027671,2]
[322194368,1712869859596,-1096.04,0.00027671,2]
[322194369,1712869859606,-777.64,0.00027671,2]
[322194370,1712869859617,-646.84,0.00027671,2]
[322194371,1712869859627,-500.0,0.00027671,2]
[322194372,1712869859637,-500.0,0.00027671,2]
[322194373,1712869859646,-958.72,0.00027671,2]
[322194374,1712869859656,-500.0,0.00027671,2]
[322194375,1712869859666,-500.0,0.00027671,2]
[322194376,1712869859677,-500.0,0.00027671,2]
[322194377,1712869859687,-683.7,0.00027671,2]
[322194378,1712869859698,-500.0,0.00027671,2]
[322194379,1712869859708,-500.0,0.00027671,2]
[322194380,1712869859718,-897.54,0.00027671,2]
[322194381,1712869859729,-684.68,0.00027671,2]
[322194382,1712869859740,-500.0,0.00027671,2]
[322194383,1712869859750,-500.0,0.00027671,2]
[322194384,1712869859760,-500.0,0.00027671,2]
[322194385,1712869859770,-500.0,0.00027671,2]
[322194386,1712869859780,-543.38,0.00027671,2]
[322194387,1712869859790,-500.0,0.00027671,2]
[322194388,1712869859801,-500.0,0.00027671,2]
[322194389,1712869859812,-809.17,0.00027671,2]
[322194390,1712869859822,-500.0,0.00027671,2]
[322194391,1712869859832,-698.14,0.00027671,2]
[322194392,1712869859843,-500.0,0.00027671,2]
[322194393,1712869859853,-500.0,0.00027671,2]
[322194394,1712869859864,-500.0,0.00027671,2]
[322194395,1712869859875,-1067.08,0.00027671,2]
[322194396,1712869859885,-500.0,0.00027671,2]
[322194397,1712869859897,-1021.38,0.00027671,2]
[322194398,1712869859908,-500.0,0.00027671,2]
[322194399,1712869859918,-784.4,0.00027671,2]
[322194400,1712869859929,-500.0,0.00027671,2]
[322194401,1712869859940,-500.0,0.00027671,2]
[322194402,1712869859951,-1207.29,0.00027671,2]
[322194403,1712869859965,-536.82727536,0.00027671,2]
[322194404,1712869859977,-853.95,0.00027671,2]
[322194405,1712869859988,-1154.75,0.00027671,2]
[322194406,1712869859998,-500.0,0.00027671,2]
[322194407,1712869860010,-500.0,0.00027671,2]
[322194408,1712869860022,-1500.39,0.00027671,2]
[322194409,1712869860033,-500.0,0.00027671,2]
[322194410,1712869860044,-500.0,0.00027671,2]
[322194411,1712869860054,-500.0,0.00027671,2]
[322194412,1712869860064,-500.0,0.00027671,2]
[322194413,1712869860074,-500.0,0.00027671,2]
[322194414,1712869860084,-1102.48,0.00027671,2]
[322194415,1712869860095,-500.0,0.00027671,2]
[322194416,1712869860106,-500.0,0.00027671,2]
[322194417,1712869860117,-500.0,0.00027671,2]
[322194418,1712869860128,-1684.95,0.00027671,2]
[322194419,1712869860139,-500.0,0.00027671,2]
[322194420,1712869860149,-864.47,0.00027671,2]
[322194421,1712869860159,-500.0,0.00027671,2]
[322194422,1712869860169,-1050.08,0.00027671,2]
[322194423,1712869860180,-500.0,0.00027671,2]
[322194424,1712869860191,-500.0,0.00027671,2]
[322194425,1712869860202,-500.0,0.00027671,2]
[322194426,1712869860212,-1060.45,0.00027671,2]
[322194427,1712869860222,-500.0,0.00027671,2]
[322194428,1712869860233,-500.0,0.00027671,2]
[322194429,1712869860244,-500.0,0.00027671,2]
[322194430,1712869860255,-727.49,0.00027671,2]
[322194431,1712869860265,-534.42,0.00027671,2]
[322194432,1712869860275,-500.0,0.00027671,2]
[322194433,1712869860290,-500.0,0.00027671,2]
[322194434,1712869860300,-500.0,0.00027671,2]
[322194435,1712869860310,-500.0,0.00027671,2]
[322194436,1712869860321,-422.3357206,0.00027671,2]
[322194437,1712869860331,-500.0,0.00027671,2]
[322194438,1712869860344,-598.73,0.00027671,2]
[322194439,1712869860356,-500.0,0.00027671,2]
[322194440,1712869860368,-500.0,0.00027671,2]
[322194441,1712869860378,-1013.17,0.00027671,2]
[322194442,1712869860389,-599.77727837,0.00027671,2]
[322194443,1712869860399,-500.0,0.00027671,2]
[322194444,1712869860409,-500.0,0.00027671,2]
[322194445,1712869860419,-552.15,0.00027671,2]
[322194446,1712869860430,-722.75,0.00027671,2]
[322194447,1712869860440,-500.0,0.00027671,2]
[322194448,1712869860452,-500.0,0.00027671,2]
[322194449,1712869860462,-500.0,0.00027671,2]
[322194450,1712869860473,-1454.96,0.00027671,2]
[322194451,1712869860483,-585.74,0.00027671,2]
[322194452,1712869860494,-600.91,0.00027671,2]
[322194453,1712869860504,-627.17,0.00027671,2]
[322194454,1712869860515,-500.0,0.00027671,2]
[322194455,1712869860525,-500.0,0.00027671,2]
[322194456,1712869860536,-500.0,0.00027671,2]
[322194457,1712869860546,-1870.66,0.00027671,2]
[322194458,1712869860556,-921.94,0.00027671,2]
[322194459,1712869860566,-500.0,0.00027671,2]
[322194460,1712869860577,-500.0,0.00027671,2]
[322194461,1712869860587,-500.0,0.00027671,2]
[322194462,1712869860598,-1288.35,0.00027671,2]
[322194463,1712869860608,-500.0,0.00027671,2]
[322194464,1712869860618,-500.0,0.00027671,2]
[322194465,1712869860630,-670.72,0.00027671,2]
[322194466,1712869860641,-500.0,0.00027671,2]
[322194467,1712869860651,-500.0,0.00027671,2]
[322194468,1712869860662,-1052.23,0.00027671,2]
[322194469,1712869860673,-500.0,0.00027671,2]
[322194470,1712869860685,-1720.31,0.00027671,2]
[322194471,1712869860696,-500.0,0.00027671,2]
[322194472,1712869860706,-500.0,0.00027671,2]
[322194473,1712869860717,-500.0,0.00027671,2]
[322194474,1712869860729,-500.0,0.00027671,2]
[322194475,1712869860740,-2622.22,0.00027671,2]
[322194476,1712869860750,-500.0,0.00027671,2]
[322194477,1712869860762,-500.0,0.00027671,2]
[322194478,1712869860774,-500.0,0.00027671,2]
[322194479,1712869860787,-1850.14,0.00027671,2]
[322194480,1712869860799,-500.0,0.00027671,2]
[322194481,1712869860810,-500.0,0.00027671,2]
[322194482,1712869860821,-500.0,0.00027671,2]
[322194483,1712869860831,-500.0,0.00027671,2]
[322194484,1712869860844,-500.0,0.00027671,2]
[322194485,1712869860854,-500.0,0.00027671,2]
[322194486,1712869860864,-300.0,0.00027671,2]
[322194487,1712869860876,-204.744698,0.00027671,2]
[322194488,1712869860887,-500.0,0.00027671,2]
[322194489,1712869860898,-500.0,0.00027671,2]
[322194490,1712869860909,-500.0,0.00027671,2]
[322194491,1712869860920,-869.29,0.00027671,2]
[322194492,1712869860930,-500.0,0.00027671,2]
[322194493,1712869860941,-500.0,0.00027671,2]
[322194494,1712869860952,-933.06,0.00027671,2]
[322194495,1712869860962,-722.11,0.00027671,2]
[322194496,1712869860973,-500.0,0.00027671,2]
[322194497,1712869860984,-500.0,0.00027671,2]
[322194498,1712869860995,-1172.68,0.00027671,2]
[322194499,1712869861005,-500.0,0.00027671,2]
[322194500,1712869861016,-500.0,0.00027671,2]
[322194501,1712869861026,-500.0,0.00027671,2]
[322194502,1712869861037,-500.0,0.00027671,2]
[322194503,1712869861048,-500.0,0.00027671,2]
[322194504,1712869861059,-993.8,0.00027671,2]
[322194505,1712869861070,-1203.46,0.00027671,2]
[322194506,1712869861080,-500.0,0.00027671,2]
[322194507,1712869861091,-500.0,0.00027671,2]
[322194508,1712869861101,-500.0,0.00027671,2]
[322194509,1712869861113,-500.0,0.00027671,2]
[322194510,1712869861126,-500.0,0.00027671,2]
[322194511,1712869861137,-408.07239987,0.00027671,2]
[322194512,1712869861149,-500.0,0.00027671,2]
[322194513,1712869861161,-500.0,0.00027671,2]
[322194514,1712869861173,-500.0,0.00027671,2]
[322194515,1712869861185,-500.0,0.00027671,2]
[322194516,1712869861197,-150.0,0.00027671,2]
[322194517,1712869861209,-500.0,0.00027671,2]
[322194518,1712869861221,-1318.86,0.00027671,2]
[322194519,1712869861234,-879.12,0.00027671,2]
[322194520,1712869861246,-500.0,0.00027671,2]
[322194521,1712869861258,-568.88241465,0.00027671,2]
[322194522,1712869861270,-1664.67,0.00027671,2]
[322194523,1712869861282,-500.0,0.00027671,2]
[322194524,1712869861293,-500.0,0.00027671,2]
[322194525,1712869861304,-500.0,0.00027671,2]
[322194526,1712869861314,-500.0,0.00027671,2]
[322194527,1712869861326,-500.0,0.00027671,2]
[322194528,1712869861337,-517.05746553,0.00027671,2]
[322194529,1712869861347,-500.0,0.00027671,2]
[322194530,1712869861359,-553.15,0.00027671,2]
[322194531,1712869861369,-500.0,0.00027671,2]
[322194532,1712869861381,-500.0,0.00027671,2]
[322194533,1712869861392,-916.81,0.00027671,2]
[322194534,1712869861402,-500.0,0.00027671,2]
[322194535,1712869861411,-500.0,0.00027671,2]
[322194536,1712869861423,-5000.0,0.00027671,2]
[322194537,1712869861433,-540.92845011,0.00027671,2]
[322194538,1712869861443,-923.4,0.00027671,2]
[322194539,1712869861453,-1597.09,0.00027671,2]
[322194540,1712869861463,-500.0,0.00027671,2]
[322194541,1712869861473,-500.0,0.00027671,2]
[322194542,1712869861484,-500.0,0.00027671,2]
[322194543,1712869861494,-628.90989534,0.00027671,2]
[322194544,1712869861505,-500.0,0.00027671,2]
[322194545,1712869861515,-500.0,0.00027671,2]
[322194546,1712869861526,-500.0,0.00027671,2]
[322194547,1712869861536,-500.0,0.00027671,2]
[322194548,1712869861546,-500.0,0.00027671,2]
[322194549,1712869861557,-500.0,0.00027671,2]
[322194550,1712869861567,-500.0,0.00027671,2]
[322194551,1712869861577,-1225.4,0.00027671,2]
[322194552,1712869861589,-500.0,0.00027671,2]
[322194553,1712869861599,-546.44429133,0.00027671,2]
[322194554,1712869861612,-500.0,0.00027671,2]
[322194555,1712869861622,-500.0,0.00027671,2]
[322194556,1712869861633,-500.0,0.00027671,2]
[322194557,1712869861644,-1736.6,0.00027671,2]
[322194558,1712869861654,-1687.78,0.00027671,2]
[322194559,1712869861664,-533.65,0.00027671,2]
[322194560,1712869861674,-500.0,0.00027671,2]
[322194561,1712869861686,-500.0,0.00027671,2]
[322194562,1712869861696,-500.0,0.00027671,2]
[322194563,1712869861708,-500.0,0.00027671,2]
[322194564,1712869861905,-500.0,0.00027671,2]
[322194565,1712869861934,-500.0,0.00027671,2]
[322194566,1712869861945,-500.0,0.00027671,2]
[322194567,1712869861958,-892.21,0.00027671,2]
[322194568,1712869861968,-500.0,0.00027671,2]
[322194569,1712869861979,-698.09,0.00027671,2]
[322194570,1712869861989,-500.0,0.00027671,2]
[322194571,1712869861999,-500.0,0.00027671,2]
[322194572,1712869862009,-500.0,0.00027671,2]
[322194573,1712869862019,-500.0,0.00027671,2]
[322194574,1712869862029,-500.0,0.00027671,2]
[322194575,1712869862039,-500.0,0.00027671,2]
[322194576,1712869862049,-500.0,0.00027671,2]
[322194577,1712869862058,-500.0,0.00027671,2]
[322194578,1712869862067,-500.0,0.00027671,2]
[322194579,1712869862076,-1618.97,0.00027671,2]
[322194580,1712869862085,-500.0,0.00027671,2]
[322194581,1712869862096,-500.0,0.00027671,2]
[322194582,1712869862106,-500.0,0.00027671,2]
[322194583,1712869862116,-500.0,0.00027671,2]
[322194584,1712869862126,-500.0,0.00027671,2]
[322194585,1712869862136,-500.0,0.00027671,2]
[322194586,1712869862145,-2495.67,0.00027671,2]
[322194587,1712869862155,-500.0,0.00027671,2]
[322194588,1712869862166,-998.14,0.00027671,2]
[322194589,1712869862175,-500.0,0.00027671,2]
[322194590,1712869862184,-605.77879146,0.00027671,2]
[322194591,1712869862194,-500.0,0.00027671,2]
[322194592,1712869862205,-500.0,0.00027671,2]
[322194593,1712869862214,-500.0,0.00027671,2]
[322194594,1712869862225,-500.0,0.00027671,2]
[322194595,1712869862234,-500.0,0.00027671,2]
[322194596,1712869862243,-588.16682558,0.00027671,2]
[322194597,1712869862253,-500.0,0.00027671,2]
[322194598,1712869862263,-500.0,0.00027671,2]
[322194599,1712869862272,-386.94360798,0.00027671,2]
[322194600,1712869862782,-113.05639202,0.00027671,2]
[322194601,1712869862792,-1890.51,0.00027671,2]
[322194602,1712869862802,-827.22,0.00027671,2]
[322194603,1712869862812,-500.0,0.00027671,2]
[322194604,1712869862821,-23138.05,0.00027671,2]
[322194605,1712869862830,-500.0,0.00027671,2]
[322194606,1712869862841,-500.0,0.00027671,2]
[322194607,1712869862851,-500.0,0.00027671,2]
[322194608,1712869862862,-500.0,0.00027671,2]
[322194609,1712869862872,-500.0,0.00027671,2]
[322194610,1712869862882,-500.0,0.00027671,2]
[322194611,1712869862893,-500.0,0.00027671,2]
[322194612,1712869862904,-500.0,0.00027671,2]
[322194613,1712869862914,-1646.03,0.00027671,2]
[322194614,1712869862925,-500.0,0.00027671,2]
[322194615,1712869862935,-911.48,0.00027671,2]
[322194616,1712869862947,-767.01,0.00027671,2]
[322194617,1712869862958,-500.0,0.00027671,2]
[322194618,1712869862968,-1116.76,0.00027671,2]
[322194619,1712869862979,-500.0,0.00027671,2]
[322194620,1712869862989,-500.0,0.00027671,2]
[322194621,1712869862999,-570.82,0.00027671,2]
[322194622,1712869863009,-198.19401729,0.00027671,2]
[322194623,1712869863018,-166.59860647,0.00027671,2]
[322194624,1712869863029,-1022.77,0.00027671,2]
[322194625,1712869863039,-500.0,0.00027671,2]
[322194626,1712869863049,-500.0,0.00027671,2]
[322194627,1712869863059,-500.0,0.00027671,2]
[322194628,1712869863069,-500.0,0.00027671,2]
[322194629,1712869863096,-831.5,0.00027671,2]
[322194630,1712869863107,-500.0,0.00027671,2]
[322194631,1712869863118,-680.97,0.00027671,2]
[322194632,1712869863130,-500.0,0.00027671,2]
[322194633,1712869863141,-500.0,0.00027671,2]
[322194634,1712869863151,-752.98,0.00027671,2]
[322194635,1712869863161,-500.0,0.00027671,2]
[322194636,1712869863171,-500.0,0.00027671,2]
[322194637,1712869863182,-500.0,0.00027671,2]
[322194638,1712869863191,-500.0,0.00027671,2]
[322194639,1712869863201,-500.0,0.00027671,2]
[322194640,1712869863211,-500.0,0.00027671,2]
[322194641,1712869863221,-500.0,0.00027671,2]
[322194642,1712869863230,-500.0,0.00027671,2]
[322194643,1712869863240,-500.0,0.00027671,2]
[322194644,1712869863250,-814.1,0.00027671,2]
[322194645,1712869863259,-1499.79,0.00027671,2]
[322194646,1712869863270,-7400.19,0.00027671,2]
[322194647,1712869863281,-500.0,0.00027671,2]
[322194648,1712869863292,-500.0,0.00027671,2]
[322194649,1712869863301,-500.0,0.00027671,2]
[322194650,1712869863311,-1023.14,0.00027671,2]
[322194651,1712869863321,-700.72,0.00027671,2]
[322194652,1712869863331,-500.0,0.00027671,2]
[322194653,1712869863348,-500.0,0.00027671,2]
[322194654,1712869863358,-500.0,0.00027671,2]
[322194655,1712869863368,-500.0,0.00027671,2]